[Event "93rd German Championship 2022"]
[Site "Magdeburg"]
[Date "2022.08.20"]
[Round "9.21"]
[White "Eichstaedt, Mirko"]
[Black "Tschernatsch, Johannes"]
[Result "0-1"]
[ECO "A48"]
[WhiteElo "2223"]
[BlackElo "2296"]
[Annotator "TA"]
[PlyCount "90"]
[EventDate "2022.08.14"]
[EventType "swiss"]
[EventCountry "GER"]
[SourceTitle "playchess.com"]
[Source "ChessBase"]
[SourceQuality "1"]
[TimeControl "40/5400+30:1800+30"]

{[%evp 9,90,22,22,23,55,56,51,49,52,25,47,54,50,27,31,30,31,32,28,35,33,31,27,31,26,12,25,24,35,19,9,0,13,-118,-104,-124,-118,-118,-88,-112,-107,-105,-8,-81,-41,-164,-167,-326,-262,-265,-254,-276,-299,-485,-478,-460,-445,-527,-557,-677,-652,-715,-702,-795,-814,-778,-770,-1131,-1122,-1036,-872,-935,-935,-1008,-735,-702,-687,-1036,-810,-809,-766,-29973,-29965]} 1. d4 Nf6 2. Nf3 g6 3. Nbd2 d5 4. e3 Bg7 5. b4 a5 6. b5 {D02: 1 d4 d5 2 Nf3 sidelines, including 2...Nf6 3 g3 and 2...Nf6 3 Bf4.} a4 7. Ba3 O-O 8. Be2 {White is slightly better.} Re8 9. c4 Nbd7 10. O-O c6 {[#]} 11. bxc6 $146 ({Predecessor:} 11. Rc1 h6 12. Qc2 cxb5 13. cxd5 b4 14. Bxb4 Nxd5 15. Ba3 e5 16. dxe5 Nxe5 17. Nxe5 Bxe5 {1-0 (63) Ushenina,A (2440)-Abdumalik,Z (2470) St Petersburg 2018}) 11... bxc6 12. Rc1 Qa5 13. Bd3 Ba6 14. Qe2 e6 15. Rc2 Bf8 16. Bxf8 Rxf8 17. a3 Rab8 18. Rfc1 Rb7 19. h4 Rfb8 20. Ng5 Qd8 21. f4 (21. Qd1 $11 {keeps the balance.}) 21... Qe7 $17 22. c5 Bxd3 23. Qxd3 Rb5 24. g3 Nh5 25. Kg2 f6 (25... Ng7 $17) 26. Nh3 (26. Ngf3 $11) 26... e5 {aiming for ...exd4.} 27. g4 {This costs White the game.} ({White should play} 27. e4 $1 $15 exd4 28. exd5 Nxc5 29. Qxd4) 27... Ng7 $19 28. f5 $2 {[#]} (28. e4 {is a better defense.} Ne6 29. exd5 Nxd4 30. dxc6 Nxc5 31. Qc4+ Kh8 32. fxe5 Nxc2 33. Rxc2 Qxe5 34. Nf2) 28... gxf5 29. gxf5 Qf7 30. e4 Kh8 31. Kh2 $2 (31. Kh1) 31... exd4 (31... dxe4 $2 32. Qxe4 exd4 33. Rf1 $19) 32. Qxd4 Ne5 {White must now prevent ...Qh5.} ({Wrong is} 32... Qh5 $2 33. exd5 Ne5 34. Rg1 cxd5 35. Qxd5 $19) 33. exd5 Nxf5 {[%cal Bg7f5,Bf5e3,Be3d5,Bd5e3,Be3c4,Bc4d2][%mdl 32]} 34. Qe4 {[#]} Ne3 {[%cal Oc6d5][%mdl 512]} 35. Rc3 (35. Nf3 Nxf3+) 35... Qxd5 36. Qxd5 Nxd5 37. R3c2 Ne3 38. Ra2 Rb2 39. Rca1 N3c4 40. Kg3 Nxd2 41. Kf4 Nd3+ 42. Kf5 Nxc5 43. Nf4 Rxa2 44. Rxa2 Ncb3 45. Rc2 Nd4+ {Weighted Error Value: White=0.80/Black=0.25 (precise)} 0-1